bitfinex/quotes_BTCUSD_20250928
["timestamp","ask_amount","ask_price","bid_price","bid_amount"]
[1759023526320,8.56452669,109780.0,109770.0,1e-08]
[1759023526321,7.9021591,109780.0,109770.0,1e-08]
[1759023526560,0.18221574,109760.0,109750.0,0.0051]
[1759023526787,8.17349928,109760.0,109750.0,0.00514645]
[1759023527005,7.90733928,109760.0,109750.0,0.01045645]
[1759023527219,8.23861665,109760.0,109750.0,0.01045645]
[1759023527424,7.78109477,109760.0,109750.0,0.01045645]
[1759023527645,8.23861665,109760.0,109750.0,0.01045645]
[1759023529186,8.23861665,109760.0,109750.0,0.01345645]
[1759023529447,8.23861665,109760.0,109750.0,0.03621645]
[1759023529690,8.23861665,109760.0,109750.0,0.03321645]
[1759023529891,8.23961665,109760.0,109750.0,0.03321645]
[1759023532081,8.2396079,109760.0,109750.0,0.03321645]
[1759023533277,8.22531282,109760.0,109750.0,0.03321645]
[1759023533489,7.76779094,109760.0,109750.0,0.03321645]
[1759023533699,8.22531282,109760.0,109750.0,0.03321645]
[1759023533909,7.76775094,109760.0,109750.0,0.03321645]
[1759023534117,8.22527282,109760.0,109750.0,0.03321645]
[1759023535111,7.93575282,109760.0,109750.0,0.03321645]
[1759023535325,7.76779094,109760.0,109750.0,0.03321645]
[1759023535747,8.22531282,109760.0,109750.0,0.03321645]
[1759023535950,7.93575282,109760.0,109750.0,0.03321645]
[1759023536177,8.23972768,109760.0,109750.0,0.03321645]
[1759023536528,7.95004768,109760.0,109750.0,0.03321645]
[1759023536734,7.4925258,109760.0,109750.0,0.03321645]
[1759023536938,7.95004768,109760.0,109750.0,0.03321645]
[1759023537137,8.23984768,109760.0,109750.0,0.03321645]
[1759023537385,8.22555282,109760.0,109750.0,0.03321645]
[1759023538421,8.22559282,109760.0,109750.0,0.03321645]
[1759023540530,8.23988768,109760.0,109750.0,0.03321645]
[1759023542401,8.21254539,109760.0,109750.0,0.03321645]
[1759023542847,8.44569633,109760.0,109750.0,0.02790645]
[1759023543275,8.47311862,109760.0,109750.0,0.02790645]
[1759023543508,8.4731159,109760.0,109750.0,0.02790645]
[1759023543969,8.24435496,109760.0,109750.0,0.02790645]
[1759023544367,8.26651293,109760.0,109750.0,0.02790645]
[1759023546312,8.25221807,109760.0,109750.0,0.02790645]
[1759023546744,8.25221877,109760.0,109750.0,0.02790645]
[1759023547573,8.25221941,109760.0,109750.0,0.02790645]
[1759023548381,8.48098035,109760.0,109750.0,0.02790645]
[1759023548598,8.56969182,109760.0,109750.0,0.02790645]
[1759023549471,8.56969182,109760.0,109730.0,0.04045564]
[1759023549472,0.18224895,109740.0,109730.0,0.04045564]
[1759023549679,8.17867391,109740.0,109730.0,0.04050201]
[1759023549935,8.20271391,109740.0,109730.0,0.04050201]
[1759023550151,8.23014189,109740.0,109730.0,0.04050201]
[1759023550579,8.24443948,109740.0,109730.0,0.04050201]
[1759023550790,7.97398745,109740.0,109730.0,0.04265201]
[1759023551000,8.26454745,109740.0,109730.0,0.04265201]
[1759023551219,7.97398745,109740.0,109730.0,0.04265201]
[1759023551498,8.26454745,109740.0,109730.0,0.04265201]
[1759023552125,8.27576107,109740.0,109730.0,0.04265201]
[1759023552565,8.27576107,109740.0,109730.0,0.04050201]
[1759023553272,7.98520107,109740.0,109730.0,0.04050201]
[1759023553461,7.98520107,109740.0,109730.0,0.04265201]
[1759023553462,8.27576107,109740.0,109730.0,0.04265201]
[1759023553871,7.98520107,109740.0,109730.0,0.04265201]
[1759023554281,8.27568107,109740.0,109730.0,0.04050201]
[1759023554413,8.24825309,109740.0,109730.0,0.04050201]
[1759023554617,8.24825309,109740.0,109730.0,0.04265201]
[1759023554914,7.95777309,109740.0,109730.0,0.04265201]
[1759023555124,8.24829309,109740.0,109730.0,0.04265201]
[1759023555825,8.2339955,109740.0,109730.0,0.04265201]
[1759023556224,7.92131753,109740.0,109730.0,0.04265201]
[1759023556383,8.21179753,109740.0,109730.0,0.04265201]
[1759023558239,8.23922552,109740.0,109730.0,0.04265201]
[1759023559299,8.49239443,109740.0,109730.0,0.04050201]
[1759023559689,8.56418077,109740.0,109730.0,0.04050201]
[1759023561368,8.56193077,109740.0,109730.0,0.04050201]
[1759023561574,8.28403993,109740.0,109730.0,0.04050201]
[1759023561781,8.46628888,109740.0,109730.0,0.04050201]
[1759023562742,8.48058739,109740.0,109730.0,0.04050201]
[1759023563817,8.19010739,109740.0,109730.0,0.04050201]
[1759023563973,8.57570739,109740.0,109730.0,0.04050201]
[1759023564407,8.57970739,109740.0,109730.0,0.04050201]
[1759023565455,8.19410739,109740.0,109730.0,0.04050201]
[1759023565661,8.57966739,109740.0,109730.0,0.04050201]
[1759023567690,8.56536888,109740.0,109730.0,0.04050201]
[1759023570496,8.47020888,109740.0,109730.0,0.04050201]
[1759023570694,8.5795074,109740.0,109730.0,0.04050201]
[1759023570992,8.5794274,109740.0,109730.0,0.04050201]
[1759023572953,8.5794274,109740.0,109730.0,0.04549201]
[1759023572954,7.93879849,109740.0,109730.0,0.04549201]
[1759023573175,8.32411849,109740.0,109730.0,0.04549201]
[1759023575550,8.22911849,109740.0,109730.0,0.04549201]
[1759023575731,8.23109849,109740.0,109730.0,0.04549201]
[1759023576570,8.0787924,109740.0,109730.0,0.04549201]
[1759023576992,7.7884724,109740.0,109730.0,0.04549201]
[1759023577138,8.0768124,109740.0,109730.0,0.04549201]
[1759023577916,8.0787924,109740.0,109730.0,0.04549201]
[1759023578831,8.0768124,109740.0,109730.0,0.04549201]
[1759023579090,8.06251388,109740.0,109730.0,0.04549201]
[1759023580369,8.06464388,109740.0,109730.0,0.04549201]
[1759023580641,8.06251388,109740.0,109730.0,0.04549201]
[1759023581877,8.07681207,109740.0,109730.0,0.04549201]
[1759023582905,8.07894207,109740.0,109730.0,0.04549201]
[1759023583271,7.77159628,109740.0,109730.0,0.04549201]
[1759023583471,8.07681207,109740.0,109730.0,0.04549201]
[1759023583889,8.07894207,109740.0,109730.0,0.04549201]
[1759023584115,7.88655793,109740.0,109730.0,0.04549201]
[1759023584323,7.92493749,109740.0,109730.0,0.04549201]
[1759023584532,7.92280749,109740.0,109730.0,0.06959201]
[1759023585297,7.92478749,109740.0,109730.0,0.06959201]
[1759023585898,7.92478749,109740.0,109730.0,0.06661201]
[1759023586300,7.94896749,109740.0,109730.0,0.06661201]
[1759023587486,7.94896749,109740.0,109730.0,0.06959201]
[1759023591251,7.94896749,109740.0,109730.0,0.06661201]
[1759023593566,7.61434259,109740.0,109730.0,0.06985201]
[1759023593798,7.91955838,109740.0,109730.0,0.06985201]
[1759023593989,7.92153838,109740.0,109730.0,0.06985201]
[1759023595475,7.61394259,109740.0,109730.0,0.06985201]
[1759023595739,7.91915838,109740.0,109730.0,0.06985201]
[1759023595946,7.92113838,109740.0,109730.0,0.06661201]
[1759023596110,7.92753297,109740.0,109730.0,0.06661201]
[1759023596341,7.92994297,109740.0,109730.0,0.06460201]
[1759023597584,7.92753297,109740.0,109730.0,0.06460201]
[1759023597972,7.92994297,109740.0,109730.0,0.06460201]
[1759023600601,7.92753297,109740.0,109730.0,0.06460201]
[1759023602800,7.92753297,109740.0,109730.0,0.06671201]
[1759023603005,7.92753297,109740.0,109730.0,0.06460201]
[1759023603467,7.92753297,109740.0,109730.0,0.06671201]
[1759023604778,7.92753297,109740.0,109730.0,0.06460201]
[1759023605787,7.92753779,109740.0,109730.0,0.06460201]
[1759023607186,7.92753779,109740.0,109730.0,0.06671201]
[1759023607424,7.92551779,109740.0,109730.0,0.06995201]
[1759023607628,7.92749779,109740.0,109730.0,0.06995201]
[1759023607834,7.9131996,109740.0,109730.0,0.06995201]
[1759023610054,7.90680019,109740.0,109730.0,0.06995201]
[1759023610276,7.9131987,109740.0,109730.0,0.06995201]
[1759023610500,7.9131987,109740.0,109730.0,0.06671201]
[1759023610938,7.92749683,109740.0,109730.0,0.06671201]
[1759023612899,7.92551683,109740.0,109730.0,0.06994201]
[1759023613719,7.92749683,109740.0,109730.0,0.06994201]
[1759023614278,7.92749683,109740.0,109730.0,0.06671201]
[1759023614883,7.95492559,109740.0,109730.0,0.06671201]
[1759023616450,7.94062746,109740.0,109730.0,0.06671201]
[1759023617713,7.94062746,109740.0,109730.0,0.06460201]
[1759023619535,7.9549256,109740.0,109730.0,0.06460201]
[1759023625116,7.9573256,109740.0,109730.0,0.06460201]
[1759023625302,7.9549256,109740.0,109730.0,0.06460201]
[1759023625931,7.9573256,109740.0,109730.0,0.06460201]
[1759023629786,7.94302746,109740.0,109730.0,0.06460201]
[1759023630473,8.03173893,109740.0,109730.0,0.06460201]
[1759023630685,8.0538969,109740.0,109730.0,0.06460201]
[1759023632305,8.07781213,109740.0,109730.0,0.06460201]
[1759023632702,8.09211125,109740.0,109730.0,0.06460201]
[1759023634168,7.74439079,109740.0,109730.0,0.06658201]
[1759023634374,8.04960658,109740.0,109730.0,0.06972201]
[1759023634578,7.66306658,109740.0,109730.0,0.06972201]
[1759023635207,7.95322658,109740.0,109730.0,0.06972201]
[1759023635732,7.64805079,109740.0,109730.0,0.06972201]
[1759023635853,7.92583782,109740.0,109730.0,0.06972201]
[1759023636060,7.63563782,109740.0,109730.0,0.06972201]
[1759023636265,7.92583782,109740.0,109730.0,0.06972201]
[1759023636793,7.78815305,109740.0,109730.0,0.06972201]
[1759023637014,7.77385393,109740.0,109730.0,0.06972201]
[1759023637230,8.06405393,109740.0,109730.0,0.06972201]
[1759023637896,7.84335198,109740.0,109730.0,0.06972201]
[1759023638083,8.02560093,109740.0,109730.0,0.06972201]
[1759023638296,7.73540093,109740.0,109730.0,0.06972201]
[1759023638530,8.02560093,109740.0,109730.0,0.06972201]
[1759023640216,8.03989907,109740.0,109730.0,0.06972201]
[1759023640853,7.74969907,109740.0,109730.0,0.06972201]
[1759023641073,8.03985907,109740.0,109730.0,0.06972201]
[1759023643691,8.04188907,109740.0,109730.0,0.06972201]
[1759023644099,8.03985907,109740.0,109730.0,0.06972201]
[1759023644299,8.03346056,109740.0,109730.0,0.06972201]
[1759023644503,8.02555781,109740.0,109730.0,0.06972201]
[1759023645055,8.02758781,109740.0,109730.0,0.06460201]
[1759023645266,8.04974578,109740.0,109730.0,0.06460201]
[1759023645479,8.01461533,109740.0,109730.0,0.06460201]
[1759023645687,8.03464086,109740.0,109730.0,0.06460201]
[1759023646851,8.03699086,109740.0,109730.0,0.06460201]
[1759023647278,8.06441916,109740.0,109730.0,0.06460201]
[1759023647991,8.07871732,109740.0,109730.0,0.06460201]
[1759023648214,8.06441916,109740.0,109730.0,0.06460201]
[1759023650570,7.28999017,109740.0,109730.0,0.06657201]
[1759023650788,7.78162738,109740.0,109730.0,0.06960201]
[1759023650945,8.01245289,109740.0,109730.0,0.06960201]
[1759023651158,8.02675105,109740.0,109730.0,0.06657201]
[1759023651597,8.02675105,109740.0,109730.0,0.06960201]
[1759023651761,8.02675105,109740.0,109730.0,0.06657201]
[1759023653951,8.02675105,109740.0,109730.0,0.06615475]
[1759023654962,8.02675105,109740.0,109730.0,0.06418475]
[1759023656515,8.01245289,109740.0,109730.0,0.06418475]
[1759023659176,8.01486289,109740.0,109730.0,0.06418475]
[1759023659360,7.8509942,109740.0,109730.0,0.06418475]
[1759023660916,7.95836249,109740.0,109730.0,0.06418475]
[1759023661988,7.95836249,109740.0,109730.0,0.06615475]
[1759023663244,7.95836249,109740.0,109730.0,0.06418475]
[1759023663452,7.96077676,109740.0,109730.0,0.06418475]
[1759023663987,7.95836676,109740.0,109730.0,0.06418475]
[1759023666529,7.95836676,109740.0,109730.0,0.06615475]
[1759023666749,7.94406847,109740.0,109730.0,0.06615475]
[1759023667066,7.94647847,109740.0,109730.0,0.06418475]
[1759023667326,7.94406847,109740.0,109730.0,0.06418475]
[1759023668171,7.94647847,109740.0,109730.0,0.06418475]
[1759023670446,7.94406847,109740.0,109730.0,0.06418475]
[1759023671690,7.74803042,109740.0,109730.0,0.06418475]
[1759023671884,7.93027937,109740.0,109730.0,0.06418475]
[1759023673193,7.9302805,109740.0,109730.0,0.06418475]
[1759023674459,7.5446005,109740.0,109730.0,0.06616475]
[1759023674660,7.8347605,109740.0,109730.0,0.06616475]
[1759023676354,7.8347605,109740.0,109730.0,0.06418475]
[1759023676562,7.8347605,109740.0,109730.0,0.06616475]
[1759023679032,7.8347605,109740.0,109730.0,0.06418475]
[1759023679438,7.8371705,109740.0,109730.0,0.06418475]
[1759023679638,7.8347605,109740.0,109730.0,0.06418475]
[1759023680607,7.37678948,109740.0,109730.0,0.06934475]
[1759023680850,7.8345205,109740.0,109730.0,0.06934475]
[1759023682692,7.5446005,109740.0,109730.0,0.06934475]
[1759023682896,7.8345205,109740.0,109730.0,0.06934475]
[1759023683601,7.08490948,109740.0,109730.0,0.06934475]
[1759023683815,7.5426405,109740.0,109730.0,0.06934475]
[1759023684027,7.80505219,109740.0,109730.0,0.06934475]
[1759023684422,7.51521219,109740.0,109730.0,0.06934475]
[1759023684661,7.80505219,109740.0,109730.0,0.06934475]
[1759023685757,7.51521219,109740.0,109730.0,0.06934475]
[1759023685980,7.80505219,109740.0,109730.0,0.06934475]
[1759023686635,7.80501219,109740.0,109730.0,0.06934475]
[1759023686830,7.51521219,109740.0,109730.0,0.06934475]
[1759023687054,7.80497219,109740.0,109730.0,0.06934475]
[1759023688023,7.60330676,109740.0,109730.0,0.06934475]
[1759023688963,7.14557574,109740.0,109730.0,0.06934475]
[1759023689190,7.60330676,109740.0,109730.0,0.06934475]
[1759023689419,7.31354676,109740.0,109730.0,0.06934475]
[1759023689664,7.60338676,109740.0,109730.0,0.09677032]
[1759023690095,7.6177247,109740.0,109730.0,0.09677032]
[1759023690765,7.88660548,109740.0,109730.0,0.09161032]
[1759023690987,7.88660548,109740.0,109730.0,0.06418475]
[1759023692640,7.90876345,109740.0,109730.0,0.06418475]
[1759023695469,7.89446551,109740.0,109730.0,0.06418475]
[1759023696150,7.89205551,109740.0,109730.0,0.06418475]
[1759023696550,7.66319,109740.0,109730.0,0.06418475]
[1759023697854,7.66089,109740.0,109730.0,0.06934475]
[1759023698187,7.63873203,109740.0,109730.0,0.06934475]
[1759023698621,7.4881873,109740.0,109730.0,0.06934475]
[1759023700853,7.1986273,109740.0,109730.0,0.06625475]
[1759023701070,7.4881473,109740.0,109730.0,0.06625475]
[1759023701287,7.4881073,109740.0,109730.0,0.06625475]
[1759023706138,7.4881073,109740.0,109730.0,0.06418475]
[1759023708258,7.4858473,109740.0,109730.0,0.06934475]
[1759023708469,7.4879173,109740.0,109730.0,0.06418475]
[1759023709658,7.1987173,109740.0,109730.0,0.06418475]
[1759023710045,7.4879973,109740.0,109730.0,0.06418475]
[1759023710970,7.50229549,109740.0,109730.0,0.06418475]
[1759023712066,7.50229549,109740.0,109730.0,0.06620475]
[1759023713288,7.50229549,109740.0,109730.0,0.06418475]
[1759023716529,7.4879973,109740.0,109730.0,0.06418475]
[1759023717991,7.4879973,109740.0,109730.0,0.06620475]
[1759023719083,7.4877973,109740.0,109730.0,0.06620475]
[1759023719686,7.50209549,109740.0,109730.0,0.06620475]
[1759023721790,7.31792814,109740.0,109730.0,0.06620475]
[1759023721934,7.50017709,109740.0,109730.0,0.06418475]
[1759023726525,7.4858789,109740.0,109730.0,0.06418475]
[1759023727386,7.48139651,109740.0,109730.0,0.06418475]
[1759023728711,7.48370651,109740.0,109730.0,0.06418475]
[1759023729388,7.50586448,109740.0,109730.0,0.06418475]
[1759023729570,7.5201629,109740.0,109730.0,0.06418475]
[1759023729780,7.60887437,109740.0,109730.0,0.06418475]
[1759023730180,7.63630311,109740.0,109730.0,0.06418475]
[1759023733770,7.64269944,109740.0,109730.0,0.06418475]
[1759023736595,7.62840102,109740.0,109730.0,0.06418475]
[1759023737030,7.93360731,109740.0,109730.0,0.06418475]
[1759023737210,7.56360478,109740.0,109730.0,0.06418475]
[1759023738442,7.27452478,109740.0,109730.0,0.06418475]
[1759023738694,7.65788478,109740.0,109730.0,0.06418475]
[1759023739558,7.57722435,109740.0,109730.0,0.06418475]
[1759023739787,7.67222435,109740.0,109730.0,0.06418475]
[1759023740004,7.67221945,109740.0,109730.0,0.06418475]
[1759023741760,7.74532549,109740.0,109730.0,0.06418475]
[1759023744683,7.72316752,109740.0,109730.0,1e-08]
[1759023744898,0.20602317,109730.0,109720.0,0.00028]
[1759023745103,0.20602317,109730.0,109720.0,0.00032649]
[1759023745104,7.47318689,109730.0,109720.0,0.00032649]
[1759023745331,7.49791689,109730.0,109720.0,0.00032649]
[1759023745459,7.52534921,109730.0,109720.0,0.00032649]
[1759023746192,7.52534921,109730.0,109720.0,0.00132649]
[1759023746663,7.61406068,109730.0,109720.0,0.00132649]
[1759023746835,7.61406068,109730.0,109720.0,0.02434649]
[1759023747714,7.61406068,109730.0,109720.0,0.02334649]
[1759023747931,7.61506068,109730.0,109720.0,0.02334649]
[1759023748707,7.61706068,109730.0,109720.0,0.02334649]
[1759023749566,7.63136075,109730.0,109720.0,0.02334649]
[1759023750602,7.03775446,109730.0,109720.0,0.02334649]
[1759023750821,7.22847167,109730.0,109720.0,0.02836649]
[1759023751224,7.51699167,109730.0,109720.0,0.02836649]
[1759023751863,7.51499167,109730.0,109720.0,0.02836649]
[1759023752323,7.51399167,109730.0,109720.0,0.02836649]
[1759023752760,7.51399167,109730.0,109720.0,0.02936649]
[1759023754524,7.22547167,109730.0,109720.0,0.02936649]
[1759023754727,7.48643935,109730.0,109720.0,0.02936649]
[1759023754870,7.19803935,109730.0,109720.0,0.02936649]
[1759023755079,7.48655935,109730.0,109720.0,0.02936649]
[1759023755927,7.18135306,109730.0,109720.0,0.02936649]
[1759023756132,7.48655935,109730.0,109720.0,0.02936649]
[1759023756544,7.47225928,109730.0,109720.0,0.02936649]
[1759023757149,7.28999372,109730.0,109720.0,0.02936649]
[1759023757367,7.47225928,109730.0,109720.0,0.02936649]
[1759023758417,7.24629728,109730.0,109720.0,0.02936649]
[1759023758798,7.17000895,109730.0,109720.0,0.02936649]
[1759023760120,7.40090691,109730.0,109720.0,0.02936649]
[1759023760315,7.42466452,109730.0,109720.0,0.02936649]
[1759023763883,6.88148895,109730.0,109720.0,0.02936649]
[1759023764101,7.16992895,109730.0,109720.0,0.02936649]
[1759023764806,6.88148895,109730.0,109720.0,0.02936649]
[1759023765046,6.65257099,109730.0,109720.0,0.02936649]
[1759023765270,7.16988895,109730.0,109720.0,0.0475947]
[1759023765461,7.16988895,109730.0,109720.0,0.07502236]
[1759023766159,6.94097099,109730.0,109720.0,0.07502236]
[1759023766573,7.16988895,109730.0,109720.0,0.07502236]
[1759023766788,7.16988895,109730.0,109720.0,0.05679415]
[1759023769404,6.98762339,109730.0,109720.0,0.05679415]
[1759023770246,6.80194796,109730.0,109720.0,0.23907632]
[1759023770823,6.51354796,109730.0,109720.0,0.23907632]
[1759023771036,6.80190796,109730.0,109720.0,0.23907632]
[1759023772220,6.58728816,109730.0,109720.0,0.23907632]
[1759023772455,6.81620612,109730.0,109720.0,0.23907632]
[1759023773836,6.99847168,109730.0,109720.0,0.05679415]
[1759023774008,6.81620612,109730.0,109720.0,0.05679415]
[1759023775823,6.71011168,109730.0,109720.0,0.05679415]
[1759023776439,6.69581352,109730.0,109720.0,0.05679415]
[1759023777364,7.21748148,109730.0,109720.0,0.05177415]
[1759023777565,7.24268611,109730.0,109720.0,0.05177415]
[1759023778438,7.24268611,109730.0,109720.0,0.02434649]
[1759023779442,7.25698565,109730.0,109720.0,0.02434649]
[1759023780615,7.25898565,109730.0,109720.0,0.02434649]
[1759023780826,7.28641797,109730.0,109720.0,0.02434649]
[1759023781049,7.28641797,109730.0,109720.0,0.02334649]
[1759023781272,7.28741797,109730.0,109720.0,0.02334649]
[1759023782980,7.32611135,109730.0,109720.0,0.02334649]
[1759023783880,7.28741797,109730.0,109720.0,0.02334649]
[1759023784122,7.51633593,109730.0,109720.0,0.02334649]
[1759023784822,7.28741797,109730.0,109720.0,0.02334649]
[1759023785045,7.51633593,109730.0,109720.0,0.02334649]
[1759023785893,7.22797593,109730.0,109720.0,0.02334649]
[1759023786118,7.47093,109730.0,109720.0,0.02334649]
[1759023786739,7.45679046,109730.0,109720.0,0.02334649]
[1759023788728,7.68570842,109730.0,109720.0,0.02334649]
[1759023789154,7.45679046,109730.0,109720.0,0.02334649]
[1759023789596,7.47109057,109730.0,109720.0,0.02334649]
[1759023795017,7.47747148,109730.0,109720.0,0.02334649]
[1759023796573,7.46317137,109730.0,109720.0,0.02334649]
[1759023796752,7.69208933,109730.0,109720.0,0.02334649]
[1759023798829,6.53330342,109730.0,109720.0,0.02334649]
[1759023799033,7.6034573,109730.0,109720.0,0.02334649]
[1759023799469,7.61775745,109730.0,109720.0,0.02334649]
[1759023801165,0.18228217,109720.0,109710.0,0.0002]
[1759023801386,8.16307166,109720.0,109710.0,0.00024648]
[1759023801594,8.28029313,109720.0,109710.0,0.00024648]
[1759023801830,8.28395144,109720.0,109710.0,0.00024648]
[1759023802520,0.18229878,109710.0,109700.0,1e-08]
[1759023802755,7.5673788,109710.0,109700.0,4.65e-05]
[1759023803003,7.5673788,109710.0,109690.0,1e-08]
[1759023803004,0.1823154,109700.0,109690.0,1e-08]
[1759023803231,8.16742817,109700.0,109690.0,0.0238665]
[1759023803452,7.90752817,109700.0,109690.0,0.0238665]
[1759023803695,8.3148434,109700.0,109690.0,1e-08]
[1759023803821,8.40355487,109700.0,109690.0,1e-08]
[1759023804061,8.43099948,109700.0,109690.0,1e-08]
[1759023804259,8.05059948,109700.0,109690.0,1e-08]
[1759023804884,8.43399948,109700.0,109690.0,1e-08]
[1759023805112,8.33899948,109700.0,109690.0,1e-08]
[1759023805335,8.05059948,109700.0,109690.0,1e-08]
[1759023805526,7.6346189,109700.0,109690.0,1e-08]
[1759023805738,7.2512189,109700.0,109690.0,1e-08]
[1759023805903,8.32137278,109700.0,109690.0,1e-08]
[1759023806104,8.32437278,109700.0,109690.0,1e-08]
[1759023806309,8.41308425,109700.0,109690.0,1e-08]
[1759023806508,8.41307516,109700.0,109690.0,1e-08]
[1759023807534,0.18233202,109690.0,109680.0,0.05398001]
[1759023807763,7.48077854,109690.0,109680.0,0.03062529]
[1759023807999,7.50489854,109690.0,109680.0,0.03062529]
[1759023808249,7.58963603,109690.0,109680.0,0.03062529]
[1759023808703,7.58730603,109690.0,109680.0,0.03062529]
[1759023809383,7.61807927,109690.0,109680.0,0.03062529]
[1759023809610,7.61907927,109690.0,109680.0,0.03062529]
[1759023810989,7.63338486,109690.0,109680.0,0.03062529]
[1759023812887,7.54631737,109690.0,109680.0,0.03062529]
[1759023813314,7.54864737,109690.0,109680.0,0.03062529]
[1759023814171,7.54864737,109690.0,109680.0,0.03259529]
[1759023814172,7.25787737,109690.0,109680.0,0.03259529]
[1759023814407,7.25787737,109690.0,109680.0,0.03555529]
[1759023814613,7.64139737,109690.0,109680.0,0.03555529]
[1759023814975,6.65778496,109690.0,109680.0,0.03555529]
[1759023815209,7.02690941,109690.0,109680.0,0.03555529]
[1759023815429,6.984733,109690.0,109680.0,0.03555529]
[1759023815652,7.30108382,109690.0,109680.0,0.03555529]
[1759023815862,7.30108382,109690.0,109680.0,0.03259529]
[1759023816298,6.5547679,109690.0,109680.0,0.03555529]
[1759023816540,6.7283718,109690.0,109680.0,0.03555529]
[1759023816966,7.0168518,109690.0,109680.0,0.03555529]
[1759023817602,7.04472262,109690.0,109680.0,0.03555529]
[1759023818079,7.27364058,109690.0,109680.0,0.03555529]
[1759023818318,7.27364058,109690.0,109660.0,0.21935545]
[1759023818319,0.18234865,109680.0,109660.0,0.21935545]
[1759023818514,0.22886448,109670.0,109660.0,0.27699291]
[1759023818729,6.5198663,109670.0,109660.0,0.27699291]
[1759023818953,6.5439863,109670.0,109660.0,0.27896291]
[1759023819380,6.72635157,109670.0,109660.0,0.05960746]
[1759023819608,6.5439863,109670.0,109660.0,0.06160746]
[1759023819791,6.36331902,109670.0,109660.0,0.06060746]
[1759023820020,6.36331902,109670.0,109660.0,0.05960746]
[1759023820247,6.36331902,109670.0,109660.0,0.06856746]
[1759023820665,6.32942693,109670.0,109660.0,0.25094936]
[1759023821929,0.03049182,109670.0,109660.0,0.55641111]
[1759023822148,0.03049182,109670.0,109660.0,0.84489111]
[1759023822364,0.03049182,109670.0,109660.0,0.93993111]
[1759023823047,0.03049182,109670.0,109660.0,0.93393111]
[1759023823258,0.03049182,109670.0,109660.0,0.94693111]
[1759023824075,0.03049182,109670.0,109660.0,0.54642936]
[1759023824282,0.03049182,109670.0,109660.0,0.64146936]
[1759023824493,0.03049182,109670.0,109660.0,0.94693111]
[1759023825525,0.03049182,109670.0,109660.0,0.94689111]
[1759023826632,0.03049182,109670.0,109660.0,0.64142936]
[1759023826824,0.03049182,109670.0,109660.0,0.94689111]
[1759023827936,0.03049182,109670.0,109660.0,0.85185111]
[1759023828163,0.03049182,109670.0,109660.0,0.94689111]
[1759023828570,0.03049182,109670.0,109660.0,0.25794936]
[1759023828781,0.03049182,109670.0,109660.0,0.94689111]
[1759023829631,0.03049182,109670.0,109660.0,0.56341111]
[1759023829777,0.03049182,109670.0,109660.0,0.94689111]
[1759023830002,0.03049182,109670.0,109660.0,0.56341111]
[1759023830209,0.03049182,109670.0,109660.0,0.64142936]
[1759023830656,0.03049182,109670.0,109660.0,0.25794936]
[1759023830844,0.03049182,109670.0,109660.0,0.64142936]
[1759023831207,0.03049182,109670.0,109660.0,0.25794936]
[1759023831404,0.03049182,109670.0,109660.0,0.54634936]
[1759023831610,0.03049182,109670.0,109660.0,0.64138936]
[1759023831811,0.03049182,109670.0,109660.0,0.94685111]
[1759023832233,0.03049182,109670.0,109660.0,0.56341111]
[1759023832438,0.03049182,109670.0,109660.0,0.94685111]
[1759023834348,0.02412,109670.0,109660.0,0.94685111]
[1759023839215,0.02412,109670.0,109660.0,0.56341111]
[1759023839518,0.02412,109670.0,109660.0,0.94681111]
[1759023842724,0.02412,109670.0,109660.0,0.85177111]
[1759023842933,0.02412,109670.0,109660.0,0.94677111]
[1759023843767,0.02412,109670.0,109660.0,0.85177111]
[1759023843984,0.02412,109670.0,109660.0,0.94677111]
[1759023844799,0.02412,109670.0,109660.0,0.56341111]
[1759023845037,0.02412,109670.0,109660.0,0.94677111]
[1759023845217,0.02412,109670.0,109660.0,1.04291111]
[1759023845441,0.02412,109670.0,109660.0,0.94677111]
[1759023846776,0.46498106,109700.0,109680.0,0.18234865]
[1759023847028,6.28677,109690.0,109680.0,0.0301519]
[1759023847244,6.29315713,109690.0,109680.0,0.3185119]
[1759023847633,6.29315803,109690.0,109680.0,0.3185119]
[1759023847845,6.29315803,109690.0,109680.0,0.34594439]
[1759023848074,6.29315803,109690.0,109680.0,0.52829304]
[1759023848315,6.29315803,109690.0,109680.0,0.53029304]
[1759023848507,6.29315803,109690.0,109680.0,0.24193304]
[1759023848659,6.29638803,109690.0,109680.0,0.53029304]
[1759023848860,6.32098803,109690.0,109680.0,0.53029304]
[1759023849067,6.32098803,109690.0,109680.0,0.79679304]
[1759023849651,6.50332005,109690.0,109680.0,0.32608439]
[1759023849851,6.50332005,109690.0,109680.0,0.61444439]
[1759023850766,6.51762253,109690.0,109680.0,0.61444439]
[1759023853111,6.33529051,109690.0,109680.0,0.61444439]
[1759023854126,6.51762253,109690.0,109680.0,0.61444439]
[1759023855374,6.50332005,109690.0,109680.0,0.5870119]
[1759023855992,6.50332005,109690.0,109680.0,0.2986519]
[1759023856318,6.80879412,109690.0,109680.0,0.5869719]
[1759023858705,6.82309677,109690.0,109680.0,0.5869719]
[1759023860452,6.8230969,109690.0,109680.0,0.5869719]
[1759023863790,6.8230969,109690.0,109680.0,0.2986519]
[1759023863995,6.8230969,109690.0,109680.0,0.5869719]
[1759023864807,6.8230969,109690.0,109680.0,0.2986519]
[1759023865008,6.8230969,109690.0,109680.0,0.5869719]
[1759023865952,6.80879425,109690.0,109680.0,0.5869719]
[1759023867964,6.82879425,109690.0,109680.0,0.5869719]
[1759023869262,6.84309701,109690.0,109680.0,0.5869719]
[1759023869675,6.83986701,109690.0,109680.0,0.5890019]
[1759023869850,6.83986701,109690.0,109680.0,0.5922219]
[1759023870262,6.53440526,109690.0,109680.0,0.5922219]
[1759023870893,6.34993324,109690.0,109680.0,0.5922219]
[1759023872560,6.53226526,109690.0,109680.0,0.5922219]
[1759023872962,6.34993324,109690.0,109680.0,0.5922219]
[1759023873181,6.34993298,109690.0,109680.0,0.5922219]
[1759023873736,6.34993298,109690.0,109680.0,0.77457055]
[1759023876250,0.06530298,109690.0,109680.0,0.77457055]
[1759023876723,0.05100022,109690.0,109680.0,0.77457055]
[1759023877294,0.05100021,109690.0,109680.0,0.77457055]
[1759023878748,0.05100021,109690.0,109680.0,0.77257055]
[1759023878996,0.05100021,109690.0,109680.0,0.77857055]
[1759023879525,0.05100021,109690.0,109680.0,0.77657055]
[1759023879814,0.06530233,109690.0,109680.0,0.78157055]
[1759023882238,0.35911137,109710.0,109690.0,0.21247546]
[1759023882432,6.28463,109700.0,109690.0,0.48019546]
[1759023882632,6.51360953,109700.0,109690.0,0.79311546]
[1759023883505,6.51563953,109700.0,109690.0,0.79311546]
[1759023883885,6.51563953,109700.0,109690.0,0.50887546]
[1759023884043,6.51563953,109700.0,109690.0,0.79389546]
[1759023884245,6.51563953,109700.0,109690.0,0.79589546]
[1759023884455,6.53818953,109700.0,109690.0,0.79589546]
[1759023884657,6.53818953,109700.0,109690.0,0.79711546]
[1759023884884,6.53818953,109700.0,109690.0,0.80011546]
[1759023886214,6.53818953,109700.0,109690.0,0.79689546]
[1759023886607,6.53818953,109700.0,109690.0,0.50865546]
[1759023886815,6.54112953,109700.0,109690.0,0.79482546]
[1759023887807,6.54112953,109700.0,109690.0,0.50662546]